bitfinex-derivatives/quotes_ETHF0:USTF0_20251001
["timestamp","ask_amount","ask_price","bid_price","bid_amount"]
[1759317795722,0.8832,4303.4,4303.3,0.7418]
[1759317796226,0.6286,4303.4,4303.3,0.9279]
[1759317797227,0.38,4303.4,4303.3,0.9279]
[1759317797527,0.6286,4303.4,4303.3,0.9279]
[1759317799729,0.6286,4303.4,4303.3,0.7418]
[1759317801929,0.8745,4303.4,4303.3,0.7418]
[1759317802519,0.8745,4303.4,4303.3,3.9496]
[1759317803725,0.8745,4303.4,4303.3,3.6874]
[1759317804333,0.8745,4303.4,4303.3,3.4494]
[1759317805027,0.8745,4303.4,4302.8,4.22048213]
[1759317805232,0.8579,4302.9,4302.8,3.8805]
[1759317805529,0.8579,4302.9,4302.8,3.6946]
[1759317805920,0.8579,4302.9,4302.8,3.2078]
[1759317806526,0.8579,4302.9,4302.8,3.4576]
[1759317809333,0.8579,4302.9,4302.8,3.2078]
[1759317811038,0.8579,4302.9,4302.4,0.1859]
[1759317811039,0.9997,4302.5,4302.4,0.1859]
[1759317811939,0.9997,4302.5,4302.2,0.237]
[1759317812137,0.3715,4302.4,4302.1,3.2078]
[1759317812441,0.8579,4302.2,4302.1,3.2078]
[1759317814543,0.8579,4302.2,4302.1,3.4576]
[1759317814742,0.8579,4302.2,4302.1,3.7097]
[1759317819742,0.8579,4302.2,4302.1,0.5019]
[1759317821039,0.3715,4302.2,4302.1,0.6749]
[1759317821437,0.3715,4302.2,4302.1,0.9119]
[1759317821642,0.3715,4302.5,4302.4,0.5019]
[1759317821833,0.1418,4303.0,4302.4,4.1197]
[1759317822136,0.9997,4303.0,4302.9,0.5019]
[1759317823644,0.9997,4303.0,4302.9,0.2498]
[1759317824140,0.1418,4302.5,4302.4,3.2078]
[1759317824344,0.9997,4302.5,4302.4,3.9467]
[1759317824544,0.9997,4302.5,4302.3,0.237]
[1759317825237,0.9997,4302.5,4302.4,0.2498]
[1759317825442,0.9997,4302.5,4302.4,0.5019]
[1759317825944,0.9997,4302.5,4302.4,0.2498]
[1759317826140,0.9997,4302.5,4302.3,0.237]
[1759317827045,0.9997,4302.5,4302.0,0.00290662]
[1759317827344,0.9997,4302.5,4302.1,0.1859]
[1759317828043,0.9997,4302.5,4302.4,0.2498]
[1759317828241,0.9997,4302.5,4302.4,0.5019]
[1759317829546,0.5133,4302.5,4302.4,3.8827]
[1759317829944,0.7623,4302.5,4302.4,3.8827]
[1759317830543,0.3715,4302.5,4302.4,3.8827]
[1759317830745,0.3947,4302.6,4302.5,0.6749]
[1759317831147,0.3715,4302.6,4302.5,0.6749]
[1759317831346,0.3715,4302.6,4302.5,0.9119]
[1759317833350,0.3715,4302.6,4302.5,1.73868213]
[1759317834851,0.6205,4302.6,4302.5,1.56568213]
[1759317835051,0.8509,4302.6,4302.5,1.56568213]
[1759317835451,0.3715,4302.6,4302.5,1.72578213]
[1759317837253,0.3715,4302.6,4302.5,0.899]
[1759317838851,0.3716,4302.8,4302.6,0.1601]
[1759317839156,0.3716,4302.8,4302.7,0.8796]
[1759317839556,0.3484,4302.8,4302.7,0.8796]
[1759317839757,0.3484,4302.9,4302.8,0.6436]
[1759317839956,0.3484,4302.9,4302.8,0.8796]
[1759317841353,0.1463,4303.5,4302.8,0.8796]
[1759317841558,0.3484,4303.4,4303.3,0.6436]
[1759317841755,0.3484,4303.4,4303.3,0.8796]
[1759317842662,0.3484,4303.4,4303.3,2.11705816]
[1759317843255,0.3484,4303.4,4303.3,0.8796]
[1759317843457,0.8184,4303.4,4303.3,0.7195]
[1759317844757,0.8184,4303.4,4303.3,1.54717635]
[1759317844957,0.8184,4303.4,4303.3,0.7195]
[1759317845460,0.8184,4303.4,4303.3,1.54694188]
[1759317847063,0.8184,4303.4,4303.3,0.7195]
[1759317847963,0.8184,4303.4,4303.3,0.4818]
[1759317848363,0.8184,4303.1,4303.0,4.03524188]
[1759317848664,0.8184,4303.1,4303.0,3.4438]
[1759317848963,0.8184,4303.1,4303.0,3.6896]
[1759317851460,0.8184,4303.1,4303.0,3.4438]
[1759317851764,0.8184,4303.1,4303.0,3.6896]
[1759317852965,0.8184,4303.1,4303.0,3.9273]
[1759317856863,0.3484,4303.1,4303.0,4.0874]
[1759317857065,0.0232,4303.3,4303.2,0.6436]
[1759317857267,0.0232,4303.3,4303.2,0.8796]
[1759317857462,0.588,4303.3,4303.2,0.8796]
[1759317857668,0.3484,4303.3,4303.2,0.8796]
[1759317857863,0.3484,4303.4,4303.2,0.7195]
[1759317858169,0.3484,4303.4,4303.3,0.6436]
[1759317860170,0.588,4303.4,4303.3,0.4835]
[1759317860370,0.4715,4303.4,4303.3,0.236]
[1759317860671,0.4715,4303.4,4303.3,0.4746]
[1759317860868,0.8173,4303.4,4303.3,0.4746]
[1759317861068,0.8173,4303.4,4303.3,0.2386]
[1759317861267,0.8173,4303.4,4303.3,0.4746]
[1759317861971,0.8173,4303.4,4303.3,0.236]
[1759317862672,0.8173,4303.4,4303.0,4.03519023]
[1759317862868,0.2319,4303.2,4303.1,0.236]
[1759317863063,0.8117,4303.2,4303.1,0.236]
[1759317863269,0.8117,4303.2,4303.1,1.53069023]
[1759317863469,0.3458,4303.2,4303.1,1.67809023]
[1759317863972,0.5816,4303.2,4303.1,1.53069023]
[1759317865469,0.3458,4303.2,4303.1,1.67809023]
[1759317865775,0.3558,4303.4,4303.3,0.4718]
[1759317865977,0.3558,4303.4,4303.3,1.68376221]
[1759317866373,0.3558,4303.4,4303.3,0.8552]
[1759317868185,0.3558,4303.4,4303.3,42.89265816]
[1759317868982,0.3558,4303.4,4303.3,41.6552]
[1759317871484,0.0232,4303.6,4303.5,0.6929]
[1759317871684,0.0232,4303.6,4303.5,4.1367]
[1759317871988,0.00276418,4303.7,4303.6,0.6192]
[1759317872285,0.00276418,4303.7,4303.6,5.6192]
[1759317872787,0.3558,4304.3,4304.2,0.4718]
[1759317872988,0.3558,4304.3,4304.2,4.89128315]
[1759317873483,0.3558,4304.3,4304.2,4.063]
[1759317873684,0.35875873,4304.3,4304.2,4.063]
[1759317876293,0.35875873,4304.3,4304.2,5.30307258]
[1759317877392,0.59455873,4304.3,4304.2,4.063]
[1759317877693,0.59455873,4304.3,4304.2,3.9156]
[1759317878091,0.83245873,4304.3,4304.2,3.9156]
[1759317878294,0.83245873,4304.3,4304.2,3.4438]
[1759317878493,0.83245873,4304.3,4304.2,3.6797]
[1759317878794,0.35875873,4304.3,4304.2,4.88952533]
[1759317878996,0.00295873,4304.3,4304.2,4.88952533]
[1759317879896,0.00295873,4304.3,4304.2,45.68952533]
[1759317880090,0.35875873,4304.3,4304.2,45.45352533]
[1759317880295,0.35875873,4304.3,4304.2,45.68952533]
[1759317880891,0.00295873,4304.3,4304.2,45.68952533]
[1759317881194,0.00295873,4304.3,4304.2,46.10307258]
[1759317881592,0.0232,4304.5,4304.4,0.4718]
[1759317881791,0.3558,4305.4,4304.9,0.1474]
[1759317881990,0.3558,4305.4,4305.3,0.4718]
[1759317881991,0.5916,4305.4,4305.3,0.4718]
[1759317882294,0.5916,4305.4,4305.3,0.7078]
[1759317882489,0.59391853,4305.4,4305.3,0.71053104]
[1759317882896,0.83181853,4305.4,4305.3,0.71053104]
[1759317883298,0.83181853,4305.4,4305.3,0.47463104]
[1759317883491,0.83181853,4305.4,4305.3,0.23873104]
[1759317885588,5.83181853,4305.4,4305.3,0.00273104]
[1759317887702,0.8295,4304.4,4304.3,3.2078]
[1759317887901,0.8295,4304.4,4304.3,3.4438]
[1759317888300,0.8295,4304.4,4304.3,3.2078]
[1759317888506,0.966,4304.0,4303.9,0.2402]
[1759317888704,0.966,4304.0,4303.9,0.4762]
[1759317888897,0.966,4304.0,4303.9,0.47784746]
[1759317889097,0.966,4304.0,4303.9,0.24184746]
[1759317889402,0.966,4304.0,4303.9,0.47784746]
[1759317890598,0.966,4304.0,4303.9,0.71804746]
[1759317891401,0.966,4304.0,4303.9,1.54359127]
[1759317894102,0.966,4304.0,4303.9,0.47784746]
[1759317896698,0.966,4304.0,4303.9,0.23764746]
[1759317897103,0.966,4304.0,4303.9,0.00164746]
[1759317897606,0.966,4304.0,4303.9,0.22234746]
[1759317897807,0.966,4304.0,4303.9,0.44304746]
[1759317901207,0.4923,4304.0,4303.9,1.40649127]
[1759317902109,0.3724,4304.5,4304.4,0.4511]
[1759317902414,0.3724,4304.5,4304.4,4.2002]
[1759317904209,0.7419,4304.5,4304.4,4.2002]
[1759317904919,0.9804,4304.5,4304.4,3.8949]
[1759317905110,0.9804,4304.5,4304.4,3.4438]
[1759317908215,0.9804,4304.5,4304.4,0.236]
[1759317910719,0.9804,4304.5,4304.2,0.1858]
[1759317917728,0.8439,4304.3,4304.2,0.1858]
[1759317917924,1.31448349,4304.3,4304.2,0.1858]
[1759317918128,0.1471,4304.0,4303.9,0.00164746]
[1759317918323,0.991,4304.0,4303.9,0.00164746]
[1759317918525,1.46161364,4304.0,4303.9,0.00164746]
[1759317918729,6.46161364,4304.0,4303.9,0.00164746]
[1759317920421,6.46161364,4304.0,4303.1,3.2078]
[1759317920422,0.8093,4303.2,4303.1,3.2078]
[1759317921332,0.8093,4303.2,4303.1,3.21042022]
[1759317925733,0.8093,4303.2,4303.1,3.44002022]
[1759317926726,0.8093,4303.2,4303.1,3.21042022]
[1759317928628,0.8093,4303.2,4303.1,0.00262022]
[1759317933146,0.8093,4303.2,4303.1,2.022e-05]
[1759317933339,0.9656,4302.0,4301.9,3.4374]
[1759317933644,0.9656,4302.0,4301.9,3.6582]
[1759317934249,0.96780968,4302.0,4301.9,3.66011541]
[1759317934642,0.96780968,4302.0,4301.9,3.20971541]
[1759317934844,0.96780968,4302.0,4301.9,0.00191541]
[1759317938351,0.9656,4301.5,4301.4,3.2078]
[1759317939054,0.9656,4301.5,4301.1,0.1859]
[1759317939349,0.9656,4301.5,4301.2,0.0424953]
[1759317941339,0.8323,4300.9,4300.8,3.2078]
[1759317942244,0.8323,4300.9,4300.8,3.21004309]
[1759317942448,0.8323,4300.9,4300.8,0.00224309]
[1759317943347,0.8323,4300.3,4300.2,3.4374]
[1759317943948,0.8323,4300.3,4300.2,3.6582]
[1759317944251,0.8323,4300.3,4300.2,3.66094653]
[1759317946246,0.8323,4300.3,4300.2,3.95954653]
[1759317948855,0.3586,4300.5,4300.4,0.4504]
[1759317949159,3.2078,4301.2,4301.0,0.2986]
[1759317949360,0.70654226,4301.1,4301.0,0.749]
[1759317949748,0.8323,4301.1,4301.0,0.4504]
[1759317953257,0.5967,4301.1,4301.0,0.749]
[1759317953459,0.3586,4301.1,4301.0,0.749]
[1759317953652,0.8282,4301.1,4301.0,0.4504]
[1759317954458,0.8282,4301.1,4301.0,0.2296]
[1759317955259,0.4689,4301.0,4300.3,0.5245]
[1759317955463,0.797,4300.9,4300.8,0.4713]
[1759317956563,0.5644,4300.9,4300.8,0.7598]
[1759317956763,0.3274,4300.9,4300.8,0.7598]
[1759317956961,3.231,4301.2,4301.1,0.2382]
[1759317957159,3.231,4301.2,4301.1,0.7598]
[1759317958771,0.0232,4301.2,4301.1,5.7598]
[1759317959659,0.3506,4301.2,4301.1,5.7598]
[1759317959858,0.0232,4301.2,4301.1,5.9958]
[1759317960061,0.0232,4301.2,4301.1,5.7598]
[1759317960268,0.5644,4301.2,4301.1,5.7598]
[1759317960664,0.3274,4301.2,4301.1,5.7598]
[1759317961857,0.797,4301.2,4301.1,5.2331]
[1759317962063,0.797,4301.2,4298.9,0.4713]
[1759317962064,0.4689,4299.0,4298.9,0.4713]
[1759317962263,0.1415,4299.5,4298.9,0.6755]
[1759317962474,0.1415,4299.5,4299.4,0.4713]
[1759317962475,0.6111,4299.5,4299.4,0.4713]
[1759317962673,0.9385,4299.5,4299.4,0.4713]
[1759317963170,0.9385,4299.5,4299.4,0.47347715]
[1759317964873,0.3274,4299.4,4298.6,3.412]
[1759317965075,0.5644,4299.4,4299.3,0.2331]
[1759317965372,0.5644,4299.4,4299.3,0.4713]
[1759317966076,0.3274,4299.4,4299.3,0.67824606]
[1759317966274,3.2078,4299.6,4299.4,0.2042]
[1759317966471,0.0232,4299.7,4299.6,0.6755]
[1759317966978,0.0232,4299.7,4299.6,5.6755]
[1759317967279,3.2078,4300.1,4300.0,0.4713]
[1759317967573,3.2078,4300.1,4300.0,0.9155]
[1759317967774,3.5352,4300.1,4300.0,0.9155]
[1759317967977,3.7722,4300.1,4300.0,0.9155]
[1759317968180,3.7722,4300.1,4300.0,0.4713]
[1759317968366,4.0048,4300.1,4300.0,0.4713]
[1759317969573,3.5352,4300.1,4300.0,0.6755]
[1759317970669,3.7722,4300.1,4300.0,0.4713]
[1759317970980,4.0048,4300.1,4300.0,0.24]
[1759317971577,0.6111,4300.0,4299.9,0.2382]
[1759317971880,0.9385,4300.0,4299.9,0.2382]
[1759317976080,0.3274,4299.9,4299.6,3.2078]
[1759317976279,0.797,4299.8,4299.7,0.4782]
[1759317976476,0.797,4299.8,4299.7,0.7113]
[1759317977383,0.797,4299.8,4299.7,0.4713]
[1759317977583,0.797,4299.8,4299.7,0.4782]
[1759317978885,0.797,4299.8,4299.7,0.2382]
[1759317979087,0.797,4299.8,4299.7,0.4782]
[1759317980891,0.797,4299.8,4299.7,0.4772]
[1759317984487,0.797,4299.8,4299.7,0.2382]
[1759317984690,0.797,4299.8,4299.7,0.4772]
[1759317985689,0.797,4299.8,4299.7,0.7255]
[1759317985891,0.3274,4299.8,4299.7,1.0032]
[1759317988788,0.5806,4299.8,4299.7,1.0032]
[1759317989388,0.3763,4300.2,4299.9,0.5087]
[1759317989588,0.3763,4300.2,4300.1,0.7864]
[1759317989789,0.3763,4300.2,4300.1,1.0254]
[1759317989986,0.3763,4300.2,4300.1,41.8254]
[1759317991095,0.0232,4300.3,4300.2,0.7864]
[1759317991597,0.3763,4300.4,4300.3,0.7864]
[1759317991792,0.3763,4300.4,4300.3,1.0254]
[1759317992197,0.6295,4300.4,4300.3,1.0254]
[1759317994595,0.3763,4300.4,4300.3,1.0254]
[1759317997702,0.8935,4300.4,4300.3,0.7477]
[1759318000804,0.5172,4300.4,4300.1,45.25262172]
[1759318001000,0.5172,4300.4,4300.3,0.238]
[1759318001401,0.3763,4300.3,4300.1,3.2078]
[1759318001601,0.8935,4300.3,4300.2,0.238]
[1759318003006,0.8935,4300.3,4300.2,0.7467]
[1759318003204,0.8935,4300.3,4300.2,1.0244]
[1759318003408,0.3763,4300.3,4300.2,1.0244]
[1759318004205,0.6295,4300.3,4300.2,1.0244]
[1759318004406,0.8935,4300.3,4300.2,0.238]
[1759318004608,0.8935,4300.2,4300.1,3.2078]
[1759318004908,0.8935,4300.2,4300.1,3.4458]
[1759318005510,0.8935,4300.2,4300.1,0.238]
[1759318007205,0.8935,4300.2,4300.1,0.2483]
[1759318007401,0.8935,4300.2,4300.1,0.4863]
[1759318007702,0.8935,4300.2,4300.1,0.2483]
[1759318007903,0.8935,4300.2,4300.1,0.4863]
[1759318009001,0.1492,4300.0,4299.9,0.2483]
[1759318009206,1.0427,4300.0,4299.9,0.7467]
[1759318015709,1.0427,4300.0,4299.9,0.4863]
[1759318016306,1.0427,4300.0,4299.7,1.24482172]
[1759318016608,0.87,4299.8,4299.7,1.24482172]
[1759318016810,0.87,4299.8,4299.7,1.73682172]
[1759318017108,0.87,4299.8,4299.7,0.492]
[1759318017409,0.87,4299.8,4299.7,1.73682172]
[1759318017909,0.87,4299.8,4299.7,1.48282172]
[1759318018100,0.87,4299.8,4299.7,0.238]
[1759318018506,0.3665,4299.7,4299.6,3.3938]
[1759318018706,0.87,4299.7,4299.6,3.6318]
[1759318018906,0.87,4299.7,4299.6,3.4458]
[1759318020110,0.87,4299.7,4299.6,3.2078]
[1759318020312,0.87,4299.7,4299.6,3.6998]
[1759318020617,0.87,4299.7,4299.6,3.4458]
[1759318021313,0.87,4299.7,4299.6,3.6998]
[1759318021813,0.87,4299.7,4299.6,3.4618]
[1759318022115,0.87,4299.7,4299.6,3.6998]
[1759318023912,0.87,4299.7,4299.6,3.4458]
[1759318025113,0.87,4299.7,4299.6,3.2078]
[1759318025312,0.87,4299.7,4299.6,3.4448]
[1759318026316,0.1409,4299.5,4299.4,0.186]
[1759318026517,1.0109,4299.5,4299.4,0.423]
[1759318026717,1.0109,4299.5,4299.4,0.237]
[1759318027711,1.0109,4299.5,4299.3,0.00274606]
[1759318027917,1.0109,4299.5,4299.4,1.06889018]
[1759318028314,1.0109,4299.5,4299.3,0.83463624]
[1759318028515,0.87,4299.4,4299.3,1.07163624]
[1759318028914,0.87,4299.4,4299.3,0.23974606]
[1759318029113,0.87,4299.4,4299.3,1.00584606]
[1759318029415,0.625,4299.9,4299.8,0.7661]
[1759318029612,0.625,4299.9,4299.8,1.83437768]
[1759318033220,0.3665,4299.9,4299.8,1.83437768]
[1759318033521,0.87,4299.9,4299.8,1.08527768]
[1759318033721,0.87,4299.9,4299.8,1.32227768]
[1759318035217,0.87,4299.9,4299.8,0.237]
[1759318035522,0.5035,4299.6,4299.5,0.491]
[1759318035820,0.87,4299.6,4299.5,0.491]
[1759318037319,1.0109,4299.5,4299.4,0.237]
[1759318037619,1.0109,4299.5,4299.3,0.00274606]
[1759318038518,0.87,4299.4,4299.3,0.83457079]
[1759318040821,0.87,4299.4,4299.3,1.07817079]
[1759318041325,0.87,4299.4,4299.3,1.32887079]
[1759318041525,0.3665,4299.4,4299.3,1.81927079]
[1759318041923,0.1409,4300.0,4299.4,0.2534]
[1759318042127,0.8544,4299.9,4299.8,0.4943]
[1759318043226,0.8544,4299.9,4299.8,0.7477]
[1759318043626,0.8544,4299.9,4299.8,0.4943]
[1759318044123,0.6154,4299.9,4299.8,0.746]
[1759318044427,0.3681,4299.9,4299.8,0.746]
[1759318044827,0.6041,4299.9,4299.8,0.746]
[1759318045531,3.6121,4300.1,4299.8,0.4943]
[1759318045823,3.6121,4300.1,4300.0,1.58512473]
[1759318046230,0.4043,4300.1,4300.0,0.7533]
[1759318046920,0.6403,4300.1,4300.0,0.7533]
[1759318047831,0.3989,4300.0,4299.9,0.2546]
[1759318048129,1.016,4300.0,4299.9,0.5016]
[1759318048430,1.016,4300.0,4299.9,0.7386]
[1759318051022,0.5277,4300.0,4299.9,0.9903]
[1759318052224,0.7637,4300.0,4299.9,0.9903]
[1759318053231,0.7637,4300.0,4299.9,0.7386]
[1759318054330,1.016,4300.0,4299.9,0.7386]
[1759318055033,1.016,4300.0,4299.9,0.5016]
[1759318055330,1.016,4300.0,4299.9,0.7386]
[1759318056227,1.016,4300.0,4299.9,0.5016]
[1759318056528,1.016,4300.0,4299.9,0.7386]
[1759318057934,1.016,4300.0,4299.9,0.9903]
[1759318058531,0.5277,4300.0,4299.9,0.9903]
[1759318059032,0.3811,4300.0,4299.9,0.9903]
[1759318059931,0.0232,4300.1,4300.0,0.7533]
[1759318060227,3.2078,4300.7,4300.0,0.7533]
[1759318060228,0.3811,4300.4,4300.3,0.5016]
[1759318060434,0.3811,4300.4,4300.3,0.9903]
[1759318065132,0.6171,4300.4,4300.3,0.9903]
[1759318072833,0.6171,4300.4,4300.3,2.23512172]
[1759318073334,0.3811,4300.4,4300.3,2.23512172]
[1759318074040,0.6171,4300.4,4300.3,2.23512172]
[1759318077351,0.6171,4300.4,4300.3,0.9903]
[1759318078850,0.6171,4300.4,4300.3,4.1981]
[1759318080548,0.1415,4301.0,4300.4,0.2392]
[1759318080755,0.7394,4300.5,4300.4,1.96550722]
[1759318080944,0.7394,4300.5,4300.4,2.20250722]
[1759318081348,0.9792,4300.5,4300.4,1.96330722]
[1759318083757,0.9792,4300.5,4300.4,5.17110722]
[1759318086260,0.9792,4300.5,4300.4,1.73350722]
[1759318086459,0.9792,4300.5,4300.4,1.96330722]
[1759318088263,0.9792,4300.5,4300.4,0.7176]
[1759318088760,0.7394,4300.5,4300.4,0.9568]
[1759318090659,0.1415,4301.0,4300.4,4.1646]
[1759318090868,3.689,4301.4,4301.3,0.8372]
[1759318091157,3.689,4301.4,4301.3,1.90566925]
[1759318092655,3.689,4301.4,4301.3,1.0742]
[1759318092859,4.0381,4301.4,4301.3,1.0742]
[1759318094473,0.8303,4301.4,4301.3,1.0742]
[1759318097865,0.5905,4301.4,4301.3,1.0742]
[1759318098564,0.8303,4301.4,4301.3,1.0742]
[1759318104472,0.8303,4301.4,4301.3,0.7176]
[1759318106271,0.3544,4301.3,4301.2,3.2078]
[1759318106473,0.8146,4301.3,4301.2,4.87806664]
[1759318106977,0.8146,4301.3,4301.2,4.0476]
[1759318108679,0.8146,4301.3,4301.2,3.4543]
[1759318108879,0.8146,4301.3,4301.2,4.27529663]
[1759318109272,0.8146,4301.3,4301.2,4.52179663]
[1759318109671,0.8146,4301.3,4301.2,4.87159663]
[1759318110177,0.8146,4301.3,4301.2,4.0411]
[1759318110579,0.8146,4301.3,4301.2,4.2846]
[1759318112777,0.5835,4301.3,4301.2,4.2846]
[1759318112977,0.8146,4301.9,4301.8,0.2465]
[1759318113177,0.8146,4301.9,4301.8,0.4835]
[1759318114781,0.8146,4301.9,4301.8,0.237]
[1759318123984,0.4602,4301.9,4301.6,1.01640176]
[1759318124187,4.0224,4301.7,4301.6,0.1859]
[1759318124687,9.0224,4301.7,4301.6,0.1859]
[1759318125088,9.49376864,4301.7,4301.6,0.1859]
[1759318126587,9.49376864,4301.7,4300.9,1.24728383]
[1759318126793,0.9511,4301.0,4300.9,1.84358383]
[1759318127682,0.9511,4301.0,4300.9,0.5963]
[1759318127881,0.9511,4301.0,4300.9,0.2465]
[1759318128092,0.47126358,4301.0,4300.9,0.49]
[1759318128397,0.9511,4301.5,4301.4,0.49]
[1759318128686,1.4223118,4301.5,4300.9,0.236]
[1759318128894,0.9511,4301.0,4300.9,0.2465]
[1759318129090,1.4223369,4301.0,4300.9,0.2465]
[1759318129288,0.8146,4301.0,4300.9,0.8398]
[1759318130593,0.9511,4301.0,4300.9,0.8398]
[1759318131891,0.3544,4301.4,4301.0,0.1477]
[1759318132092,0.8146,4301.4,4301.3,0.8398]
[1759318132395,1.29105619,4301.4,4301.3,0.8398]
[1759318136501,0.8093,4301.3,4301.2,0.579]
[1759318136698,1.28575619,4301.3,4301.2,0.579]
[1759318137099,1.28575619,4301.3,4301.2,0.8041]
[1759318139401,0.47645619,4301.3,4301.2,0.8041]
[1759318139607,0.5771,4301.3,4301.2,0.4531]
[1759318139811,1.05355619,4301.3,4301.2,0.4531]
[1759318140097,1.28575619,4301.3,4301.2,0.4531]
[1759318140304,1.28575619,4301.3,4301.2,0.8041]
[1759318141411,1.28575619,4301.3,4301.2,0.6891]
[1759318141707,1.28575619,4301.3,4301.2,0.236]
[1759318141907,1.28575619,4301.3,4300.8,1.24728383]
[1759318142104,0.8093,4300.9,4300.8,0.228]
[1759318142307,0.8093,4300.9,4300.8,0.464]
[1759318142507,0.8093,4300.9,4300.8,0.815]
[1759318142900,0.8093,4300.9,4300.8,1.0401]
[1759318148113,0.8093,4300.9,4300.8,0.8041]
[1759318148307,0.8093,4300.7,4300.6,0.186]
[1759318148505,0.4564,4299.7,4299.6,1.82628383]
[1759318148708,0.8093,4299.7,4299.6,1.82628383]
[1759318149003,0.8093,4299.7,4299.6,2.05138383]
[1759318149204,0.8093,4299.7,4299.6,0.8041]
[1759318149406,0.5771,4299.7,4299.6,0.8041]
[1759318154313,0.0232,4299.9,4299.6,0.4531]
[1759318154518,0.0232,4299.9,4299.8,0.8041]
[1759318154914,0.3529,4300.4,4299.9,0.351]
[1759318155114,0.5771,4300.4,4300.3,0.8041]
[1759318155419,0.5771,4300.4,4300.3,1.0401]
[1759318155820,0.3529,4300.6,4300.3,0.6891]
[1759318156020,0.5771,4300.9,4300.8,0.8041]
[1759318156211,0.3529,4301.1,4300.9,0.351]
[1759318156417,0.3529,4301.1,4301.0,0.8041]
[1759318157116,0.3529,4301.5,4301.4,0.4531]
[1759318157323,0.3529,4301.5,4301.4,1.0401]
[1759318157616,0.5771,4301.5,4301.4,1.0401]
[1759318158415,0.8093,4301.5,4301.4,1.0401]
[1759318158616,0.9467,4301.5,4301.4,1.0401]
[1759318158816,0.9467,4301.5,4301.4,0.236]
[1759318159319,0.9467,4301.5,4301.4,0.464]
[1759318159924,0.9467,4301.5,4301.3,0.236]
[1759318161125,0.9467,4301.5,4301.4,0.228]
[1759318162027,0.9467,4301.5,4301.4,0.5889]
[1759318162626,0.9467,4301.5,4301.4,0.228]
[1759318163728,0.9467,4301.5,4300.7,3.3938]
[1759318163928,0.2237,4300.9,4300.8,1.0204]
[1759318164124,0.5568,4300.9,4300.8,1.0204]
[1759318164826,0.5568,4300.9,4300.8,0.7844]
[1759318165031,0.5568,4300.9,4300.8,1.0204]
[1759318166522,0.7929,4300.9,4300.8,1.0204]
[1759318167029,0.7929,4300.9,4300.8,0.7844]
[1759318167428,0.7929,4300.9,4300.8,1.0204]
[1759318168324,0.7929,4300.9,4300.7,3.2078]
[1759318168534,0.7929,4300.8,4300.7,3.6664]
[1759318168725,0.7929,4300.8,4300.7,3.9948]
[1759318168925,0.7929,4300.8,4300.7,4.2282]
[1759318172936,0.7929,4300.8,4300.7,3.8998]
[1759318173335,0.7929,4300.8,4300.7,3.6638]
[1759318173634,0.7929,4300.8,4300.7,3.6664]
[1759318174137,0.7929,4300.8,4300.7,4.2282]
[1759318174729,0.3331,4300.8,4300.7,4.2282]
[1759318175035,0.2237,4300.9,4300.8,0.7844]
[1759318175235,0.5568,4300.9,4300.8,0.7844]
[1759318177036,0.7929,4300.9,4300.8,0.7844]
[1759318178430,0.7929,4300.9,4300.8,1.0204]
[1759318179737,0.7929,4300.9,4300.8,0.692]
[1759318181633,0.7929,4300.9,4300.8,0.456]
[1759318181835,0.7929,4300.9,4300.8,0.4586]
[1759318182031,0.7929,4300.8,4300.7,3.2078]
[1759318182334,0.7929,4300.8,4300.7,3.6664]
[1759318182735,0.7929,4300.8,4300.7,3.9948]
[1759318188942,0.7929,4300.8,4300.7,4.2282]
[1759318190846,0.7929,4300.8,4300.4,1.24728383]
[1759318191048,0.94953633,4300.7,4300.6,0.551]
[1759318191242,0.94953633,4300.7,4300.6,0.7844]
[1759318191548,1.28263633,4300.7,4300.6,0.7844]
[1759318194950,1.28263633,4300.7,4300.6,0.456]
[1759318195544,1.28263633,4300.7,4300.6,0.2226]
[1759318195750,0.5824,4300.5,4300.4,0.5584]
[1759318195939,0.9298,4300.5,4300.4,0.7944]
[1759318197239,0.3474,4300.5,4300.4,1.0247]
[1759318199052,0.5819,4300.5,4300.4,1.0247]
[1759318199650,0.5819,4300.8,4300.7,0.4564]
[1759318199850,1.07168351,4300.8,4300.7,1.0247]
[1759318200552,0.0232,4300.9,4300.7,1.0247]
[1759318200753,0.0232,4300.9,4300.8,0.7887]
[1759318200754,0.6051,4300.9,4300.8,0.7887]
[1759318200959,0.51295177,4300.9,4300.8,0.7887]
[1759318201254,0.48975177,4300.9,4300.8,0.7887]
[1759318201848,1.07165177,4300.9,4300.8,0.7887]
[1759318202949,1.28995177,4300.9,4300.8,0.7887]
[1759318203355,1.07165177,4300.9,4300.8,0.7887]
[1759318203557,0.48975177,4300.9,4300.8,0.7887]
[1759318204258,0.83715177,4300.9,4300.8,0.7887]
[1759318206357,1.07165177,4300.9,4300.8,0.7887]
[1759318206756,1.28995177,4300.9,4300.8,0.7887]
[1759318207149,1.28995177,4300.9,4300.8,0.4564]
[1759318207454,1.28995177,4300.9,4300.4,1.43328383]
[1759318207660,0.9298,4300.5,4300.4,0.186]
[1759318207858,1.41973566,4300.5,4300.4,0.186]
[1759318208460,1.41973566,4300.5,4300.4,0.4121]
[1759318209255,1.41973566,4300.5,4300.4,0.186]
[1759318209860,1.41973566,4300.5,4300.2,3.4438]
[1759318210060,0.8002,4300.3,4300.2,3.2078]
[1759318210262,1.29013566,4300.3,4300.2,3.2078]
[1759318210760,1.29013566,4300.3,4300.2,3.4339]
[1759318210965,0.8002,4300.3,4300.2,3.9965]